fUSD/lending_fUSD_20250606
["ID","MTS","AMOUNT","RATE_DAILY","PERIOD"]
[364725673,1749220261549,-150.0,0.00030454,7]
[364725674,1749220261559,-150.0,0.00030462,7]
[364725675,1749220261569,-799.33893387,0.00030462,2]
[364725676,1749220261578,-36038.3920614,0.00030466,2]
[364725677,1749220261588,-239.4279877,0.00030467,7]
[364725678,1749220261597,-186.88884126,0.00030467,7]
[364725679,1749220261607,-1500.0,0.00030468,5]
[364725680,1749220261616,-305.62590981,0.00030468,3]
[364725681,1749220261626,-500.0,0.00030468,2]
[364725682,1749220261636,-1500.0,0.00030468,5]
[364725683,1749220261644,-1500.0,0.00030468,5]
[364725684,1749220261654,-1500.0,0.00030468,5]
[364725685,1749220261663,-150.0,0.00030471,7]
[364725686,1749220261674,-3337.4364009,0.00030472,2]
[364725687,1749220261685,-165.885412,0.00030472,7]
[364725688,1749220261694,-28167.6323922,0.00030472,2]
[364725689,1749220261703,-165.885412,0.00030472,7]
[364725690,1749220261713,-296.887823,0.00030472,7]
[364725691,1749220261724,-296.887823,0.00030472,7]
[364725692,1749220261733,-81134.2331171,0.00030472,2]
[364725693,1749220261744,-150.0,0.00030474,7]
[364725694,1749220261753,-150.0,0.00030477,7]
[364725695,1749220261766,-239.4279877,0.0003048,7]
[364725696,1749220261775,-186.88884126,0.0003048,7]
[364725697,1749220261785,-152.20580727,0.00030482,2]
[364725698,1749220261794,-151.0,0.00030483,7]
[364725699,1749220261803,-152.014466,0.00030484,7]
[364725700,1749220261813,-227.336484,0.00030484,7]
[364725701,1749220261822,-151.0,0.00030484,7]
[364725702,1749220261832,-268.08273,0.00030484,7]
[364725703,1749220261842,-150.0,0.00030484,7]
[364725704,1749220261852,-151.0,0.00030485,7]
[364725705,1749220261861,-151.0,0.00030485,7]
[364725706,1749220261871,-5163.5621743,0.00030485,2]
[364725707,1749220261880,-8737.7598823,0.00030486,2]
[364725708,1749220261889,-150.0,0.00030486,2]
[364725709,1749220261899,-150.0,0.00030486,7]
[364725710,1749220261908,-151.0,0.00030487,7]
[364725711,1749220261918,-151.0,0.00030487,7]
[364725712,1749220261928,-151.0,0.00030487,7]
[364725713,1749220262022,-151.0,0.00030487,7]
[364725714,1749220262032,-151.0,0.00030487,7]
[364725715,1749220262042,-151.0,0.00030487,7]
[364725716,1749220262052,-151.0,0.00030487,7]
[364725717,1749220262062,-1362.899122,0.00030487,7]
[364725718,1749220262071,-1362.899122,0.00030487,7]
[364725719,1749220262080,-151.0,0.00030487,7]
[364725720,1749220262089,-159.858197,0.00030487,7]
[364725721,1749220262099,-224.971363,0.00030487,7]
[364725722,1749220262108,-151.0,0.00030487,7]
[364725723,1749220262117,-224.971363,0.00030487,7]
[364725724,1749220262127,-151.0,0.00030487,7]
[364725725,1749220262136,-346.563624,0.00030487,7]
[364725726,1749220262145,-346.563624,0.00030487,7]
[364725727,1749220262154,-151.0,0.00030487,7]
[364725728,1749220262163,-2214.2556343,0.00030487,2]
[364725729,1749220262174,-151.0,0.00030487,7]
[364725730,1749220262183,-450.0,0.00030487,2]
[364725731,1749220262192,-450.0,0.00030487,2]
[364725732,1749220262202,-400.398277,0.00030487,2]
[364725733,1749220262211,-151.0,0.00030493,7]
[364725734,1749220262221,-151.4469,0.00030493,7]
[364725735,1749220262231,-151.0,0.00030493,7]
[364725736,1749220262241,-151.0,0.00030493,7]
[364725737,1749220262250,-151.0,0.00030493,7]
[364725738,1749220262260,-151.0,0.00030493,7]
[364725739,1749220262269,-151.0,0.00030493,7]
[364725740,1749220262279,-151.0,0.00030493,7]
[364725741,1749220262288,-210.982028,0.00030493,7]
[364725742,1749220262298,-210.982028,0.00030493,7]
[364725743,1749220262307,-151.0,0.00030493,7]
[364725744,1749220262316,-151.0,0.00030493,7]
[364725745,1749220262325,-235.227545,0.00030493,7]
[364725746,1749220262334,-164.396546,0.00030493,7]
[364725747,1749220262344,-164.396546,0.00030493,7]
[364725748,1749220262353,-151.0,0.00030493,7]
[364725749,1749220262363,-151.0,0.00030493,7]
[364725750,1749220262379,-151.0,0.00030493,7]
[364725751,1749220262388,-151.0,0.00030493,7]
[364725752,1749220262398,-186.894339,0.00030493,7]
[364725753,1749220262407,-173.795224,0.00030493,7]
[364725754,1749220262419,-173.795224,0.00030493,7]
[364725755,1749220262427,-184.675395,0.00030493,7]
[364725756,1749220262437,-165.046603,0.00030493,7]
[364725757,1749220262447,-151.0,0.00030493,7]
[364725758,1749220262456,-165.046603,0.00030493,7]
[364725759,1749220262466,-151.0,0.00030493,7]
[364725760,1749220262475,-178.626492,0.00030493,7]
[364725761,1749220262484,-178.626492,0.00030493,7]
[364725762,1749220262494,-1360.080029,0.00030493,7]
[364725763,1749220262503,-1360.080029,0.00030493,7]
[364725764,1749220262512,-151.0,0.00030493,7]
[364725765,1749220262522,-2222.878919,0.00030493,7]
[364725766,1749220262531,-151.0,0.00030493,7]
[364725767,1749220262541,-2069.069336,0.00030493,7]
[364725768,1749220262550,-151.0,0.00030493,7]
[364725769,1749220262559,-151.0,0.00030493,7]
[364725770,1749220262568,-151.0,0.00030493,7]
[364725771,1749220262578,-242.735552,0.00030493,7]
[364725772,1749220262588,-242.735552,0.00030493,7]
[364725773,1749220262597,-151.0,0.00030493,7]
[364725774,1749220262606,-151.0,0.00030493,7]
[364725775,1749220262618,-151.0,0.00030493,7]
[364725776,1749220262627,-151.0,0.00030493,7]
[364725777,1749220262637,-839.7152,0.00030493,7]
[364725778,1749220262646,-839.7152,0.00030493,7]
[364725779,1749220262656,-151.0,0.00030493,7]
[364725780,1749220262665,-151.0,0.00030493,7]
[364725781,1749220262676,-480.0,0.00030493,7]
[364725782,1749220262685,-549.69134652,0.00030493,7]
[364725783,1749220262694,-480.0,0.00030493,7]
[364725784,1749220262703,-480.0,0.00030493,7]
[364725785,1749220262713,-480.0,0.00030493,7]
[364725786,1749220262723,-480.0,0.00030493,7]
[364725787,1749220262734,-250.0,0.00030493,7]
[364725788,1749220262743,-480.0,0.00030493,7]
[364725789,1749220262752,-480.0,0.00030493,7]
[364725790,1749220262762,-480.0,0.00030493,7]
[364725791,1749220262773,-480.0,0.00030493,7]
[364725792,1749220262782,-480.0,0.00030493,7]
[364725793,1749220262791,-617.81,0.00030493,7]
[364725794,1749220262802,-490.58235706,0.00030493,7]
[364725795,1749220262811,-234.971268,0.00030493,7]
[364725796,1749220262820,-480.0,0.00030493,7]
[364725797,1749220262830,-234.971268,0.00030493,7]
[364725798,1749220262839,-411.62581981,0.00030493,7]
[364725799,1749220262848,-414.66,0.00030493,7]
[364725800,1749220262858,-480.0,0.00030493,7]
[364725801,1749220262867,-480.0,0.00030493,7]
[364725802,1749220262877,-480.0,0.00030493,7]
[364725803,1749220262886,-464.42401485,0.00030493,7]
[364725804,1749220262895,-480.0,0.00030493,7]
[364725805,1749220262905,-480.0,0.00030493,7]
[364725806,1749220262914,-1997.23,0.00030493,7]
[364725807,1749220262924,-480.0,0.00030493,7]
[364725808,1749220262933,-151.0,0.00030493,7]
[364725809,1749220262942,-594.61488097,0.00030493,7]
[364725810,1749220262951,-847.34,0.00030493,7]
[364725811,1749220262960,-480.0,0.00030493,7]
[364725812,1749220262970,-151.0,0.00030493,7]
[364725813,1749220262979,-480.0,0.00030493,7]
[364725814,1749220262988,-496.35132524,0.00030493,7]
[364725815,1749220262998,-338.69359784,0.00030493,7]
[364725816,1749220263007,-480.0,0.00030493,7]
[364725817,1749220263016,-283.505928,0.00030493,7]
[364725818,1749220263025,-480.0,0.00030493,7]
[364725819,1749220263034,-151.0,0.00030493,7]
[364725820,1749220263043,-151.0,0.00030493,7]
[364725821,1749220263052,-480.0,0.00030493,7]
[364725822,1749220263062,-480.0,0.00030493,7]
[364725823,1749220263072,-480.0,0.00030493,7]
[364725824,1749220263081,-480.0,0.00030493,7]
[364725825,1749220263091,-480.0,0.00030493,7]
[364725826,1749220263100,-480.0,0.00030493,7]
[364725827,1749220263110,-480.0,0.00030493,7]
[364725828,1749220263119,-480.0,0.00030493,7]
[364725829,1749220263129,-480.0,0.00030493,7]
[364725830,1749220263139,-427.64119037,0.00030493,7]
[364725831,1749220263149,-151.0,0.00030493,7]
[364725832,1749220263160,-480.0,0.00030493,7]
[364725833,1749220263172,-151.0,0.00030493,7]
[364725834,1749220263183,-557.72,0.00030493,7]
[364725835,1749220263193,-480.0,0.00030493,7]
[364725836,1749220263203,-480.0,0.00030493,7]
[364725837,1749220263212,-288.26849159,0.00030493,7]
[364725838,1749220263222,-413.98880786,0.00030493,7]
[364725839,1749220263231,-681.93,0.00030493,7]
[364725840,1749220263241,-480.0,0.00030493,7]
[364725841,1749220263251,-1362.899122,0.00030493,7]
[364725842,1749220263261,-1362.899122,0.00030493,7]
[364725843,1749220263270,-151.0,0.00030493,7]
[364725844,1749220263280,-480.0,0.00030493,7]
[364725845,1749220263290,-480.0,0.00030493,7]
[364725846,1749220263300,-683.06,0.00030493,7]
[364725847,1749220263310,-480.0,0.00030493,7]
[364725848,1749220263320,-1194.15,0.00030493,7]
[364725849,1749220263329,-480.0,0.00030493,7]
[364725850,1749220263339,-224.971363,0.00030493,7]
[364725851,1749220263349,-151.0,0.00030493,7]
[364725852,1749220263359,-480.0,0.00030493,7]
[364725853,1749220263374,-224.971363,0.00030493,7]
[364725854,1749220263385,-281.099124,0.00030493,7]
[364725855,1749220263395,-480.0,0.00030493,7]
[364725856,1749220263404,-504.02,0.00030493,7]
[364725857,1749220263414,-151.0,0.00030493,7]
[364725858,1749220263427,-151.0,0.00030493,7]
[364725859,1749220263436,-268.556788,0.00030493,7]
[364725860,1749220263447,-699.24,0.00030493,7]
[364725861,1749220263458,-480.0,0.00030493,7]
[364725862,1749220263468,-480.0,0.00030493,7]
[364725863,1749220263478,-480.0,0.00030493,7]
[364725864,1749220263487,-480.0,0.00030493,7]
[364725865,1749220263497,-480.0,0.00030493,7]
[364725866,1749220263506,-480.0,0.00030493,7]
[364725867,1749220263515,-480.0,0.00030493,7]
[364725868,1749220263525,-480.0,0.00030493,7]
[364725869,1749220263534,-480.0,0.00030493,7]
[364725870,1749220263543,-480.0,0.00030493,7]
[364725871,1749220263554,-480.0,0.00030493,7]
[364725872,1749220263563,-480.0,0.00030493,7]
[364725873,1749220263572,-480.0,0.00030493,7]
[364725874,1749220263582,-819.51,0.00030493,7]
[364725875,1749220263592,-480.0,0.00030493,7]
[364725876,1749220263602,-480.0,0.00030493,7]
[364725877,1749220263612,-480.0,0.00030493,7]
[364725878,1749220263621,-979.25,0.00030493,7]
[364725879,1749220263632,-613.49,0.00030493,7]
[364725880,1749220263641,-480.0,0.00030493,7]
[364725881,1749220263651,-480.0,0.00030493,7]
[364725882,1749220263660,-480.0,0.00030493,7]
[364725883,1749220263670,-480.0,0.00030493,7]
[364725884,1749220263680,-1135.81,0.00030493,7]
[364725885,1749220263690,-480.0,0.00030493,7]
[364725886,1749220263699,-480.0,0.00030493,7]
[364725887,1749220263709,-504.16,0.00030493,7]
[364725888,1749220263719,-480.0,0.00030493,7]
[364725889,1749220263729,-480.0,0.00030493,7]
[364725890,1749220263738,-480.0,0.00030493,7]
[364725891,1749220263748,-500.0,0.00030493,7]
[364725892,1749220263758,-480.0,0.00030493,7]
[364725893,1749220263768,-480.0,0.00030493,7]
[364725894,1749220263777,-741.75,0.00030493,7]
[364725895,1749220263786,-480.0,0.00030493,7]
[364725896,1749220263796,-480.0,0.00030493,7]
[364725897,1749220263805,-830.77,0.00030493,7]
[364725898,1749220263815,-480.0,0.00030493,7]
[364725899,1749220263824,-500.0,0.00030493,7]
[364725900,1749220263834,-352.2929355,0.00030493,7]
[364725901,1749220263843,-480.0,0.00030493,7]
[364725902,1749220263852,-150.0,0.00030493,7]
[364725903,1749220263862,-480.0,0.00030493,7]
[364725904,1749220263871,-843.49,0.00030493,7]
[364725905,1749220263881,-480.0,0.00030493,7]
[364725906,1749220263890,-480.0,0.00030493,7]
[364725907,1749220263899,-480.0,0.00030493,7]
[364725908,1749220263908,-6539.273502,0.00030493,7]
[364725909,1749220263918,-6539.273502,0.00030493,7]
[364725910,1749220263927,-480.0,0.00030493,7]
[364725911,1749220263937,-151.0,0.00030493,7]
[364725912,1749220263946,-480.0,0.00030493,7]
[364725913,1749220263956,-151.0,0.00030493,7]
[364725914,1749220263966,-500.0,0.00030493,7]
[364725915,1749220263975,-480.0,0.00030493,7]
[364725916,1749220263985,-480.0,0.00030493,7]
[364725917,1749220263994,-480.0,0.00030493,7]
[364725918,1749220264003,-480.0,0.00030493,7]
[364725919,1749220264013,-2600.34,0.00030493,7]
[364725920,1749220264022,-549.18638581,0.00030493,7]
[364725921,1749220264032,-620.62,0.00030493,7]
[364725922,1749220264041,-1342.16,0.00030493,7]
[364725923,1749220264051,-847.94,0.00030493,7]
[364725924,1749220264060,-675.47,0.00030493,30]
[364725925,1749220264070,-464.67828378,0.00030493,7]
[364725926,1749220264079,-507.4,0.00030493,7]
[364725927,1749220264090,-480.0,0.00030493,7]
[364725928,1749220264100,-1057.697866,0.00030493,7]
[364725929,1749220264110,-480.0,0.00030493,7]
[364725930,1749220264120,-621.25,0.00030493,7]
[364725931,1749220264129,-694.31,0.00030493,7]
[364725932,1749220264138,-1057.697866,0.00030493,7]
[364725933,1749220264148,-480.0,0.00030493,7]
[364725934,1749220264157,-480.0,0.00030493,7]
[364725935,1749220264167,-480.0,0.00030493,7]
[364725936,1749220264178,-480.0,0.00030493,7]
[364725937,1749220264188,-480.0,0.00030493,7]
[364725938,1749220264197,-480.0,0.00030493,7]
[364725939,1749220264207,-151.0,0.00030493,7]
[364725940,1749220264217,-151.0,0.00030493,7]
[364725941,1749220264226,-480.0,0.00030493,7]
[364725942,1749220264236,-151.0,0.00030493,7]
[364725943,1749220264245,-151.0,0.00030493,7]
[364725944,1749220264255,-480.0,0.00030493,7]
[364725945,1749220264264,-480.0,0.00030493,7]
[364725946,1749220264273,-346.563624,0.00030493,7]
[364725947,1749220264283,-737.4,0.00030493,7]
[364725948,1749220264292,-529.44,0.00030493,7]
[364725949,1749220264302,-480.0,0.00030493,7]
[364725950,1749220264311,-151.0,0.00030493,7]
[364725951,1749220264320,-480.0,0.00030493,7]
[364725952,1749220264330,-346.563624,0.00030493,7]
[364725953,1749220264339,-480.0,0.00030493,7]
[364725954,1749220264349,-721.19,0.00030493,7]
[364725955,1749220264358,-1441.03,0.00030493,7]
[364725956,1749220264369,-1003.2,0.00030493,7]
[364725957,1749220264383,-480.0,0.00030493,7]
[364725958,1749220264392,-480.0,0.00030493,7]
[364725959,1749220264402,-1057.7,0.00030493,7]
[364725960,1749220264411,-480.0,0.00030493,7]
[364725961,1749220264422,-729.61,0.00030493,7]
[364725962,1749220264431,-480.0,0.00030493,7]
[364725963,1749220264440,-730.84,0.00030493,7]
[364725964,1749220264450,-689.59,0.00030493,7]
[364725965,1749220264459,-151.0,0.00030493,7]
[364725966,1749220264469,-480.0,0.00030493,7]
[364725967,1749220264479,-151.0,0.00030493,7]
[364725968,1749220264488,-1560.79,0.00030493,7]
[364725969,1749220264498,-480.0,0.00030493,7]
[364725970,1749220264508,-480.0,0.00030493,7]
[364725971,1749220264517,-1787.56,0.00030493,7]
[364725972,1749220264527,-1063.57,0.00030493,7]
[364725973,1749220264537,-775.63,0.00030493,7]
[364725974,1749220264547,-1536.34,0.00030493,7]
[364725975,1749220264557,-480.0,0.00030493,7]
[364725976,1749220264566,-480.0,0.00030493,7]
[364725977,1749220264575,-162.344159,0.00030493,7]
[364725978,1749220264585,-151.0,0.00030493,7]
[364725979,1749220264595,-480.0,0.00030493,7]
[364725980,1749220264604,-1206.52,0.00030493,7]
[364725981,1749220264614,-499.27085598,0.00030493,7]
[364725982,1749220264623,-480.0,0.00030493,7]
[364725983,1749220264633,-480.0,0.00030493,7]
[364725984,1749220264642,-608.45,0.00030493,7]
[364725985,1749220264652,-480.0,0.00030493,7]
[364725986,1749220264662,-920.1,0.00030493,7]
[364725987,1749220264671,-480.0,0.00030493,7]
[364725988,1749220264681,-480.0,0.00030493,7]
[364725989,1749220264690,-480.0,0.00030493,7]
[364725990,1749220264700,-480.0,0.00030493,7]
[364725991,1749220264709,-1792.16,0.00030493,7]
[364725992,1749220264719,-862.41,0.00030493,7]
[364725993,1749220264728,-490.39,0.00030493,7]
[364725994,1749220264738,-151.0,0.00030493,7]
[364725995,1749220264748,-480.0,0.00030493,7]
[364725996,1749220264758,-151.0,0.00030493,7]
[364725997,1749220264767,-480.0,0.00030493,7]
[364725998,1749220264777,-1262.12,0.00030493,7]
[364725999,1749220264786,-480.0,0.00030493,7]
[364726000,1749220264795,-1912.2,0.00030493,7]
[364726001,1749220264805,-480.0,0.00030493,7]
[364726002,1749220264814,-480.0,0.00030493,7]
[364726003,1749220264824,-480.0,0.00030493,7]
[364726004,1749220264833,-151.0,0.00030493,7]
[364726005,1749220264843,-480.0,0.00030493,7]
[364726006,1749220264852,-789.07,0.00030493,7]
[364726007,1749220264862,-480.0,0.00030493,7]
[364726008,1749220264871,-480.0,0.00030493,7]
[364726009,1749220264881,-480.0,0.00030493,7]
[364726010,1749220264891,-486.86,0.00030493,7]
[364726011,1749220264901,-480.0,0.00030493,7]
[364726012,1749220264912,-480.0,0.00030493,7]
[364726013,1749220264922,-1009.26,0.00030493,7]
[364726014,1749220264932,-480.0,0.00030493,7]
[364726015,1749220264941,-609.30085438,0.00030493,7]
[364726016,1749220264951,-1163.93,0.00030493,7]
[364726017,1749220264962,-1438.84,0.00030493,7]
[364726018,1749220264972,-480.0,0.00030493,7]
[364726019,1749220264983,-480.0,0.00030493,7]
[364726020,1749220264992,-480.0,0.00030493,7]
[364726021,1749220265002,-454.9211908,0.00030493,7]
[364726022,1749220265012,-597.43,0.00030493,7]
[364726023,1749220265022,-480.0,0.00030493,7]
[364726024,1749220265032,-480.0,0.00030493,7]
[364726025,1749220265043,-1570.73,0.00030493,7]
[364726026,1749220265053,-480.0,0.00030493,7]
[364726027,1749220265063,-480.0,0.00030493,7]
[364726028,1749220265073,-480.0,0.00030493,7]
[364726029,1749220265084,-528.17,0.00030493,7]
[364726030,1749220265094,-480.0,0.00030493,7]
[364726031,1749220265103,-761.22,0.00030493,7]
[364726032,1749220265113,-480.0,0.00030493,7]
[364726033,1749220265122,-480.0,0.00030493,7]
[364726034,1749220265132,-1220.04,0.00030493,7]
[364726035,1749220265141,-150.0,0.00030493,7]
[364726036,1749220265151,-480.0,0.00030493,7]
[364726037,1749220265160,-306.51618416,0.00030493,2]
[364726038,1749220265172,-1362.42,0.00030493,7]
[364726039,1749220265181,-480.0,0.00030493,7]
[364726040,1749220265191,-165.885412,0.00030493,7]
[364726041,1749220265201,-165.885412,0.00030493,7]
[364726042,1749220265211,-1000.0,0.00030493,7]
[364726043,1749220265220,-480.0,0.00030493,7]
[364726044,1749220265230,-480.0,0.00030493,7]
[364726045,1749220265240,-1189.05,0.00030493,7]
[364726046,1749220265250,-151.0,0.00030493,7]
[364726047,1749220265260,-151.0,0.00030493,7]
[364726048,1749220265270,-480.0,0.00030493,7]
[364726049,1749220265279,-296.887823,0.00030493,7]
[364726050,1749220265289,-985.5,0.00030493,7]
[364726051,1749220265299,-480.0,0.00030493,7]
[364726052,1749220265309,-820.31,0.00030493,7]
[364726053,1749220265319,-296.887823,0.00030493,7]
[364726054,1749220265329,-572.01,0.00030493,7]
[364726055,1749220265340,-381.543116,0.00030493,7]
[364726056,1749220265350,-381.543116,0.00030493,7]
[364726057,1749220265359,-1807.04,0.00030493,7]
[364726058,1749220265369,-1262.79,0.00030493,7]
[364726059,1749220265385,-381.543116,0.00030493,7]
[364726060,1749220265395,-381.543116,0.00030493,7]
[364726061,1749220265405,-2516.73,0.00030493,7]
[364726062,1749220265415,-480.0,0.00030493,7]
[364726063,1749220265428,-778.34,0.00030493,7]
[364726064,1749220265438,-480.0,0.00030493,7]
[364726065,1749220265448,-839.08,0.00030493,7]
[364726066,1749220265459,-11285.31,0.00030493,7]
[364726067,1749220265470,-1101.15,0.00030493,7]
[364726068,1749220265480,-480.0,0.00030493,7]
[364726069,1749220265489,-3214.08,0.00030493,7]
[364726070,1749220265499,-480.0,0.00030493,7]
[364726071,1749220265508,-480.0,0.00030493,7]
[364726072,1749220265518,-2964.96,0.00030493,7]
[364726073,1749220265527,-873.96,0.00030493,7]
[364726074,1749220265537,-4607.18,0.00030493,7]
[364726075,1749220265547,-480.0,0.00030493,7]
[364726076,1749220265558,-20710.06,0.00030493,7]
[364726077,1749220265567,-480.0,0.00030493,7]
[364726078,1749220265577,-480.0,0.00030493,7]
[364726079,1749220265587,-500.0,0.00030493,7]
[364726080,1749220265596,-1067.02,0.00030493,7]
[364726081,1749220265606,-480.0,0.00030493,7]
[364726082,1749220265616,-428.0,0.00030493,2]
[364726083,1749220265625,-480.0,0.00030493,7]
[364726084,1749220265634,-612.42,0.00030493,7]
[364726085,1749220265644,-3585.66,0.00030493,7]
[364726086,1749220265654,-480.0,0.00030493,7]
[364726087,1749220265663,-1186.93,0.00030493,7]
[364726088,1749220265673,-480.0,0.00030493,7]
[364726089,1749220265682,-480.0,0.00030493,2]
[364726090,1749220265693,-927.0,0.00030493,7]
[364726091,1749220265702,-2364.45,0.00030493,7]
[364726092,1749220265712,-1255.39,0.00030493,7]
[364726093,1749220265721,-480.0,0.00030493,7]
[364726094,1749220265731,-1399.55,0.00030493,7]
[364726095,1749220265740,-491.87,0.00030493,7]
[364726096,1749220265750,-825.25,0.00030493,7]
[364726097,1749220265759,-1108.3,0.00030493,7]
[364726098,1749220265769,-726.54,0.00030493,7]
[364726099,1749220265778,-150.0,0.00030493,7]
[364726100,1749220265788,-480.0,0.00030493,7]
[364726101,1749220265798,-2028.66,0.00030493,7]
[364726102,1749220265808,-480.0,0.00030493,7]
[364726103,1749220265818,-1692.8,0.00030493,7]
[364726104,1749220265828,-781.47,0.00030493,7]
[364726105,1749220265838,-1466.18,0.00030493,7]
[364726106,1749220265848,-73191.22,0.00030493,7]
[364726107,1749220265857,-1031.1,0.00030493,7]
[364726108,1749220265867,-2308.95,0.00030493,7]
[364726109,1749220265877,-1187.36,0.00030493,7]
[364726110,1749220265887,-1402.86,0.00030493,7]
[364726111,1749220265897,-1807.35,0.00030493,7]
[364726112,1749220265906,-1648.94,0.00030493,7]
[364726113,1749220265916,-1912.7,0.00030493,7]
[364726114,1749220265931,-4297.8,0.00030493,7]
[364726115,1749220265941,-480.0,0.00030493,7]
[364726116,1749220265950,-1127.05,0.00030493,7]
[364726117,1749220265960,-480.0,0.00030493,7]
[364726118,1749220265970,-1433.3,0.00030493,7]
[364726119,1749220265980,-793.28,0.00030493,7]
[364726120,1749220265990,-300.0,0.00030493,7]
[364726121,1749220266000,-480.0,0.00030493,7]
[364726122,1749220266009,-845.41,0.00030493,7]
[364726123,1749220266020,-1143.75,0.00030493,7]
[364726124,1749220266030,-480.0,0.00030493,7]
[364726125,1749220266040,-4339.46,0.00030493,7]
[364726126,1749220266050,-550.99,0.00030493,7]
[364726127,1749220266061,-480.0,0.00030493,7]
[364726128,1749220266074,-480.0,0.00030493,7]
[364726129,1749220266085,-480.0,0.00030493,7]
[364726130,1749220266095,-558.97,0.00030493,7]
[364726131,1749220266104,-498.86195999,0.00030493,7]
[364726132,1749220266115,-705.32,0.00030493,7]
[364726133,1749220266125,-638.49,0.00030493,7]
[364726134,1749220266135,-171.240678,0.00030493,7]
[364726135,1749220266146,-171.240678,0.00030493,7]
[364726136,1749220266157,-646.01,0.00030493,7]
[364726137,1749220266168,-480.0,0.00030493,7]
[364726138,1749220266180,-5821.7,0.00030493,7]
[364726139,1749220266190,-151.0,0.00030493,7]
[364726140,1749220266201,-480.0,0.00030493,7]
[364726141,1749220266211,-171.240678,0.00030493,7]
[364726142,1749220266222,-171.240678,0.00030493,7]
[364726143,1749220266232,-1415.28,0.00030493,7]
[364726144,1749220266242,-480.0,0.00030493,7]
[364726145,1749220266252,-2997.28,0.00030493,7]
[364726146,1749220266263,-480.0,0.00030493,7]
[364726147,1749220266273,-2219.2,0.00030493,7]
[364726148,1749220266284,-151.0,0.00030493,7]
[364726149,1749220266294,-480.0,0.00030493,7]
[364726150,1749220266304,-253.847817,0.00030493,7]
[364726151,1749220266314,-4881.17,0.00030493,7]
[364726152,1749220266325,-1494.8,0.00030493,7]
[364726153,1749220266335,-253.847817,0.00030493,7]
[364726154,1749220266345,-480.0,0.00030493,7]
[364726155,1749220266356,-480.0,0.00030493,7]
[364726156,1749220266367,-761.61,0.00030493,7]
[364726157,1749220266382,-2109.18,0.00030493,7]
[364726158,1749220266392,-1044.45,0.00030493,7]
[364726159,1749220266403,-253.847817,0.00030493,7]
[364726160,1749220266413,-253.847817,0.00030493,7]
[364726161,1749220266425,-480.0,0.00030493,7]
[364726162,1749220266436,-617.24,0.00030493,7]
[364726163,1749220266446,-6318.65,0.00030493,7]
[364726164,1749220266457,-1804.22,0.00030493,7]
[364726165,1749220266468,-776.29,0.00030493,7]
[364726166,1749220266478,-5806.79,0.00030493,7]
[364726167,1749220266488,-480.0,0.00030493,7]
[364726168,1749220266498,-902.05,0.00030493,7]
[364726169,1749220266509,-480.0,0.00030493,7]
[364726170,1749220266519,-677.86,0.00030493,7]
[364726171,1749220266528,-480.0,0.00030493,7]
[364726172,1749220266538,-17052.87,0.00030493,7]